bitfinex-derivatives/quotes_ETHF0:USTF0_20251013
["timestamp","ask_amount","ask_price","bid_price","bid_amount"]
[1760355715929,1.6762,4084.3,4083.8,3.2078]
[1760355716133,1.6762,4084.3,4083.9,0.265]
[1760355716435,3.2078,4084.4,4084.0,0.6917]
[1760355716634,3.2078,4084.4,4084.3,1.6799]
[1760355716834,3.2078,4084.4,4084.3,1.9449]
[1760355717437,0.44032,4084.3,4083.8,3.2078]
[1760355717635,3.2078,4084.4,4084.2,0.44032]
[1760355717836,3.2078,4084.4,4084.3,1.9449]
[1760355718236,4.884,4084.4,4084.3,0.265]
[1760355718540,1.6762,4084.4,4084.3,0.265]
[1760355719639,3.2078,4084.9,4084.7,1.6799]
[1760355719843,1.10036,4085.9,4084.8,1.9449]
[1760355719844,3.9165,4085.5,4084.8,1.9449]
[1760355720034,0.44025,4084.9,4084.4,0.44029]
[1760355720242,1.6762,4085.2,4084.5,0.265]
[1760355720430,1.6762,4085.2,4084.4,1.6799]
[1760355720738,1.6762,4085.2,4084.0,1.79254]
[1760355720739,1.6762,4085.0,4084.8,3.2078]
[1760355720946,1.14894,4085.0,4084.8,3.2078]
[1760355721240,2.82514,4085.0,4084.9,0.265]
[1760355721848,2.3849,4085.0,4084.9,0.265]
[1760355722046,1.6762,4085.0,4084.8,0.44025]
[1760355722335,1.6762,4085.2,4084.9,0.265]
[1760355722544,1.6762,4085.2,4085.1,1.6799]
[1760355722735,0.00267994,4085.3,4085.1,0.44022]
[1760355722934,0.00267994,4085.3,4085.2,1.6799]
[1760355723138,3.2078,4086.0,4085.2,1.68204545]
[1760355723334,1.6762,4086.2,4085.6,3.2078]
[1760355723534,3.2078,4085.8,4085.3,1.6799]
[1760355723740,0.44016,4085.7,4085.4,0.265]
[1760355724140,1.6762,4085.5,4085.4,0.265]
[1760355724744,1.6762,4085.3,4085.2,0.00214545]
[1760355725043,4.884,4085.3,4085.2,0.26714545]
[1760355725643,8.083085,4085.3,4085.2,0.00214545]
[1760355725948,8.083085,4085.3,4085.2,0.26714545]
[1760355726248,8.083085,4085.3,4085.2,0.00214545]
[1760355726440,2.11654,4084.1,4083.9,3.2078]
[1760355726642,1.6762,4084.0,4083.9,3.2078]
[1760355726840,1.6762,4084.0,4083.9,3.4728]
[1760355727238,1.6762,4084.0,4083.9,5.1527]
[1760355727439,1.6762,4084.0,4083.9,3.21040397]
[1760355727642,2.3849,4084.0,4083.9,3.21040397]
[1760355727841,2.3849,4084.0,4083.9,3.47540397]
[1760355728243,0.44034,4084.1,4084.0,1.6799]
[1760355729044,2.11654,4084.1,4084.0,1.6799]
[1760355729245,1.6762,4084.0,4083.9,3.47540397]
[1760355729447,1.6762,4084.0,4083.9,0.26760397]
[1760355731447,2.3849,4084.0,4083.9,0.00260397]
[1760355731742,2.3849,4084.0,4082.1,1.10136]
[1760355731743,0.44045,4083.0,4082.9,3.2078]
[1760355731944,2.11665,4083.0,4082.9,3.2078]
[1760355732154,2.82535,4083.0,4082.9,3.4718]
[1760355732647,2.82535,4083.0,4082.9,3.2078]
[1760355732843,2.11672,4082.4,4082.3,3.2078]
[1760355733039,2.11931436,4082.4,4082.3,3.21051609]
[1760355733247,2.11931436,4082.4,4082.3,3.47451609]
[1760355733846,0.00259436,4082.4,4082.3,4.89041609]
[1760355734046,0.00259436,4082.4,4082.3,5.15441609]
[1760355734640,0.44311436,4082.4,4082.3,5.15441609]
[1760355734953,0.00259436,4082.4,4082.3,5.15441609]
[1760355735848,1.58259436,4082.4,4082.3,3.21051609]
[1760355736046,1.58259436,4082.4,4082.3,3.47451609]
[1760355736549,1.58259436,4082.4,4082.3,3.21051609]
[1760355736750,1.58259436,4082.4,4082.3,3.47451609]
[1760355737446,1.58259436,4082.4,4082.3,3.21051609]
[1760355737645,1.58259436,4082.4,4082.3,3.47451609]
[1760355737844,1.58259436,4082.4,4082.3,3.21051609]
[1760355738150,1.58259436,4082.4,4082.3,3.47451609]
[1760355738550,2.02311436,4082.4,4082.3,3.47451609]
[1760355738752,2.02311436,4082.4,4082.3,3.21051609]
[1760355739043,2.02311436,4082.4,4082.3,0.00271609]
[1760355739247,2.02311436,4082.4,4082.3,0.26671609]
[1760355739645,0.00259436,4082.4,4082.3,5.09311609]
[1760355739950,0.00259436,4082.4,4082.3,5.53364609]
[1760355742150,1.58,4084.1,4083.1,1.10111]
[1760355742348,3.2078,4084.3,4083.0,0.6613]
[1760355742349,3.64811,4084.3,4083.6,1.6186]
[1760355742545,3.2078,4084.3,4084.1,1.6186]
[1760355742747,3.2078,4084.8,4084.4,0.44029]
[1760355743052,3.2078,4084.8,4084.2,0.264]
[1760355743053,3.21087673,4084.8,4084.6,2.05887]
[1760355743348,0.00307673,4084.8,4084.7,1.8826]
[1760355743957,0.44029,4084.5,4084.3,3.2078]
[1760355744252,1.58,4084.6,4084.4,0.264]
[1760355744644,0.00307673,4084.8,4084.4,0.264]
[1760355744845,0.00307673,4084.8,4084.5,1.6186]
[1760355745041,0.00307673,4084.8,4084.7,1.6186]
[1760355745249,0.00307673,4084.8,4084.7,1.8826]
[1760355745751,0.00307673,4084.8,4084.3,3.2078]
[1760355745752,1.58307673,4084.8,4084.4,1.6186]
[1760355745955,3.2078,4085.8,4084.9,1.6186]
[1760355746156,3.2078,4085.8,4085.0,0.9253]
[1760355746359,0.44018,4085.5,4085.1,1.6186]
[1760355746546,0.4402,4085.4,4085.0,0.6613]
[1760355746751,1.58,4085.3,4085.1,0.264]
[1760355746951,0.0022398,4085.3,4085.2,1.6186]
[1760355747255,0.0022398,4085.3,4085.2,1.62130984]
[1760355747750,0.0022398,4085.3,4085.2,2.06151984]
[1760355748053,1.5822398,4085.3,4085.2,0.00270984]
[1760355748253,4.7900398,4085.3,4085.2,0.26670984]
[1760355748751,0.44027,4084.8,4084.3,3.2078]
[1760355749053,0.44023,4085.1,4084.5,0.44029]
[1760355749446,1.58,4085.2,4084.6,0.44027]
[1760355749647,2.02022,4085.2,4084.9,1.6186]
[1760355749854,0.0022398,4085.3,4085.0,0.9253]
[1760355750151,0.0022398,4085.3,4085.2,2.05881]
[1760355750654,0.0022398,4085.3,4085.2,2.32281]
[1760355750951,0.0022398,4085.3,4085.2,1.8826]
[1760355753965,1.58,4086.7,4085.8,1.6186]
[1760355754153,1.58,4086.7,4085.9,0.263]
[1760355754459,0.44012,4086.1,4085.9,0.263]
[1760355754658,0.44012,4086.1,4086.0,1.6186]
[1760355754963,0.00291716,4086.1,4086.0,1.6186]
[1760355755862,0.44017,4085.6,4085.4,1.6186]
[1760355756063,2.02019,4085.4,4085.3,3.2078]
[1760355756359,1.58,4085.4,4085.3,3.4708]
[1760355756562,1.58,4085.4,4085.3,5.0894]
[1760355757065,2.02019,4085.4,4085.3,5.0894]
[1760355757761,2.02019,4085.4,4085.3,4.8264]
[1760355757951,0.44025,4084.9,4084.8,3.2078]
[1760355758157,2.02025,4084.9,4084.8,3.4708]
[1760355758459,2.02025,4084.9,4084.8,3.2078]
[1760355758758,2.02025,4084.9,4084.8,3.4708]
[1760355758965,0.44025,4084.9,4084.8,5.0894]
[1760355759656,0.44025,4084.9,4084.8,4.8264]
[1760355759862,1.58,4085.8,4085.1,0.44022]
[1760355760061,1.58,4085.8,4085.4,3.2078]
[1760355760258,1.58,4085.8,4085.0,1.10153]
[1760355760560,1.58,4085.8,4084.9,3.2078]
[1760355760561,0.44022,4085.2,4085.1,1.8816]
[1760355760764,0.44022,4085.2,4085.1,1.6186]
[1760355760960,0.44022,4085.2,4085.1,1.8816]
[1760355761962,2.02023,4085.0,4084.9,3.2078]
[1760355762159,2.02023,4085.0,4084.9,3.4708]
[1760355762359,2.02023,4085.0,4084.9,3.2078]
[1760355762664,2.02023,4085.0,4084.9,3.4708]
[1760355763463,1.10053,4085.3,4084.9,3.4708]
[1760355763464,0.44022,4085.1,4085.0,1.6186]
[1760355763660,0.44022,4085.1,4085.0,1.8816]
[1760355764164,3.17920045,4085.4,4085.0,1.8816]
[1760355764362,0.44022,4085.1,4085.0,1.8816]
[1760355764568,2.01922,4085.1,4085.0,0.263]
[1760355765963,0.44022,4085.1,4085.0,1.9012]
[1760355766468,2.10022,4085.1,4085.0,0.263]
[1760355767163,0.44021,4085.2,4085.0,1.9012]
[1760355767359,1.10036,4085.9,4085.1,1.6382]
[1760355767563,1.10036,4085.9,4085.0,1.34493]
[1760355767564,0.4402,4085.4,4085.3,1.6382]
[1760355768858,1.66,4085.7,4085.2,0.7032]
[1760355769063,0.44017,4085.6,4085.3,1.6382]
[1760355769260,0.44017,4085.6,4085.4,0.263]
[1760355769460,0.44017,4085.6,4085.5,1.6382]
[1760355770470,2.10017,4085.6,4085.5,1.6382]
[1760355770662,0.44018,4085.5,4085.4,0.263]
[1760355770863,2.10018,4085.5,4085.4,0.263]
[1760355771068,2.10018,4085.5,4085.4,1.9012]
[1760355771770,0.44018,4085.5,4085.4,1.9012]
[1760355772472,0.44017,4085.6,4085.5,1.6382]
[1760355773172,3.64796,4085.8,4085.5,1.6382]
[1760355773367,3.64796,4085.8,4085.4,0.263]
[1760355773774,0.44304716,4086.1,4085.7,0.44016]
[1760355773975,0.00291716,4086.1,4086.0,2.72003]
[1760355774568,0.00291716,4086.1,4086.0,1.6382]
[1760355775274,1.66291716,4086.1,4086.0,1.9012]
[1760355775676,1.66291716,4086.1,4086.0,5.109]
[1760355775875,1.66291716,4086.1,4086.0,4.846]
[1760355776076,1.66291716,4086.1,4086.0,5.109]
[1760355777665,0.00291716,4086.1,4086.0,5.109]
[1760355779666,1.66291716,4086.1,4086.0,5.109]
[1760355780280,2.10303716,4086.1,4086.0,4.846]
[1760355780479,2.10303716,4086.1,4086.0,3.4698]
[1760355780869,0.00291716,4086.1,4086.0,5.7497]
[1760355781268,2.10303716,4086.1,4086.0,4.846]
[1760355781573,1.66291716,4086.1,4086.0,5.108]
[1760355781774,0.00291716,4086.1,4086.0,5.4877]
[1760355782077,0.00291716,4086.1,4086.0,5.7497]
[1760355782773,0.00291716,4086.1,4085.4,1.6382]
[1760355782774,2.3163,4086.0,4085.4,1.6382]
[1760355782975,0.44016,4085.8,4085.5,1.9002]
[1760355783174,0.44016,4085.8,4085.6,1.6382]
[1760355783175,2.10016,4085.8,4085.6,1.6382]
[1760355783376,2.10016,4085.8,4085.5,0.262]
[1760355783575,0.44016,4085.7,4085.6,1.6382]
[1760355784279,1.66,4085.8,4085.6,1.6382]
[1760355784484,0.00291716,4086.1,4085.6,1.6382]
[1760355784485,2.10016,4085.7,4085.6,1.6382]
[1760355784784,0.44016,4085.7,4085.6,1.9002]
[1760355785178,2.10016,4085.7,4085.6,1.9002]
[1760355785580,2.10016,4085.7,4085.6,1.6382]
[1760355785781,2.10016,4085.7,4085.6,1.9002]
[1760355786281,2.10016,4085.7,4085.6,1.6382]
[1760355786479,1.66,4085.2,4085.1,1.6382]
[1760355786785,2.1002,4085.4,4085.2,1.6382]
[1760355787087,0.44018,4085.5,4085.3,0.262]
[1760355787286,0.44018,4085.5,4085.4,1.6382]
[1760355787776,0.44017,4085.6,4085.4,3.2078]
[1760355787981,1.10322716,4086.1,4085.4,3.2078]
[1760355787982,1.66,4085.9,4085.5,0.9037]
[1760355788180,0.44016,4085.7,4085.6,1.6382]
[1760355788378,2.10016,4085.7,4085.6,1.6382]
[1760355789277,1.66,4086.0,4085.6,1.6382]
[1760355789480,0.44013,4086.0,4085.7,0.262]
[1760355789681,0.44303716,4086.1,4085.8,1.6382]
[1760355789882,0.00291716,4086.1,4086.0,1.6382]
[1760355790083,0.00291716,4086.1,4086.0,2.5419]
[1760355790480,0.44303716,4086.1,4086.0,2.5419]
[1760355790684,2.10303716,4086.1,4086.0,1.9002]
[1760355790985,1.66291716,4086.1,4086.0,0.262]
[1760355791183,1.66291716,4086.1,4086.0,1.9002]
[1760355791481,0.00291716,4086.1,4086.0,2.2799]
[1760355791680,0.00291716,4086.1,4086.0,5.7497]
[1760355792787,0.00291716,4086.1,4086.0,5.4877]
[1760355792987,1.66291716,4086.1,4086.0,5.108]
[1760355793375,0.00291716,4086.1,4086.0,5.108]
[1760355793887,0.44303716,4086.1,4086.0,5.108]
[1760355794384,0.00291716,4086.1,4086.0,5.108]
[1760355794983,0.44303716,4086.1,4086.0,5.7497]
[1760355795582,2.06373716,4086.1,4086.0,5.108]
[1760355796091,0.44303716,4086.1,4086.0,5.7327]
[1760355797091,0.44017,4085.6,4085.5,5.4959]
[1760355797290,0.44017,4085.6,4085.5,5.7579]
[1760355798086,0.44016,4085.8,4085.5,5.7579]
[1760355798291,0.00291716,4086.1,4085.5,5.7579]
[1760355798292,0.00291716,4086.1,4086.0,4.4315]
[1760355798590,0.44303716,4086.1,4086.0,7.9013]
[1760355798890,1.50453716,4086.1,4086.0,7.9013]
[1760355799194,0.00291716,4086.1,4086.0,7.9013]
[1760355799592,1.6207,4087.2,4086.1,1.6464]
[1760355799791,1.6207,4087.2,4087.1,1.6464]
[1760355799792,0.44,4087.2,4087.1,1.6464]
[1760355800089,3.2078,4087.5,4087.1,1.6464]
[1760355800090,3.64777,4087.5,4087.1,1.9074]
[1760355800284,0.43999,4087.3,4087.1,5.1152]
[1760355800491,0.43999,4087.3,4087.2,1.6464]
[1760355800687,0.0029043,4087.3,4087.2,1.6464]
[1760355803494,0.0029043,4087.3,4087.2,1.9074]
[1760355804995,0.0029043,4087.3,4087.2,1.6464]
[1760355805190,0.0029043,4087.3,4087.2,1.9074]
[1760355805792,0.0029043,4087.3,4087.2,3.8068]
[1760355806096,0.0029043,4087.3,4087.2,4.0678]
[1760355807991,0.0029043,4087.3,4087.2,4.5078]
[1760355809601,1.50136,4088.5,4088.4,3.8068]
[1760355809796,1.50136,4088.5,4088.4,4.0678]
[1760355809996,4.17496,4088.5,4088.4,4.0678]
[1760355810396,4.17667446,4088.5,4088.4,4.07096662]
[1760355811297,4.17667446,4088.5,4088.4,2.42456662]
[1760355811496,0.43997,4087.5,4087.4,3.2078]
[1760355811702,4.17507,4087.5,4087.4,4.5476]
[1760355811897,2.73537,4087.5,4087.4,3.2078]
[1760355812098,2.73537,4087.5,4087.4,3.4688]
[1760355812592,2.73537,4087.5,4087.4,3.47052292]
[1760355813200,1.10004,4087.1,4086.5,1.6464]
[1760355813497,1.10004,4087.1,4084.0,0.6247]
[1760355813498,0.44028,4084.7,4084.0,0.6247]
[1760355813698,3.2078,4084.6,4084.0,0.6247]
[1760355813992,6.41753001,4084.6,4084.0,0.6247]
[1760355814193,3.2078,4084.6,4084.5,4.0935024]
[1760355814398,3.2078,4085.2,4085.0,0.6247]
[1760355814588,3.21017352,4085.2,4085.0,0.6247]
[1760355814794,3.21017352,4085.2,4085.1,3.4688024]
[1760355815298,3.21017352,4085.2,4085.1,5.1152024]
[1760355815493,3.64797,4085.7,4085.5,0.6247]
[1760355815693,0.44014,4085.9,4085.7,1.6464]
[1760355815894,0.44014,4085.9,4085.8,1.9074]
[1760355816297,0.44014,4085.9,4085.8,1.6464]
[1760355816594,0.44245233,4085.9,4085.8,1.6464]
[1760355816795,0.44245233,4085.9,4085.8,1.9074]
[1760355822198,0.44245233,4085.9,4085.8,0.95868]
[1760355822398,0.44017,4085.6,4085.5,0.6247]
[1760355822700,0.44022,4085.1,4085.0,0.6247]
[1760355822899,3.64802,4085.1,4085.0,0.8857]
[1760355823706,6.90035629,4085.1,4084.3,3.2078]
[1760355823896,3.64808,4084.6,4083.8,3.2078]
[1760355824093,3.64808,4084.6,4084.5,0.8874162]
[1760355824298,3.64808,4084.6,4084.5,2.5794162]
[1760355824604,3.64808,4084.6,4084.5,2.3184162]
[1760355824794,3.64808,4084.6,4084.5,0.8874162]
[1760355825197,3.64808,4084.6,4084.5,0.6264162]
[1760355825504,6.8648809,4084.6,4084.5,0.0017162]
[1760355826710,0.44039,4083.6,4083.5,2.3702]
[1760355826904,3.64819,4083.6,4083.5,2.6312]
[1760355827407,3.2078,4083.6,4083.5,2.6312]
[1760355827707,3.2078,4083.6,4083.5,2.63367524]
[1760355829392,0.44044,4083.1,4083.0,2.3702]
[1760355829594,0.44049,4082.6,4082.5,2.4088]
[1760355829909,3.64829,4082.6,4082.5,2.6688]
[1760355830504,3.65109625,4082.6,4082.5,2.67171799]
[1760355831302,3.21060625,4082.6,4082.5,2.67171799]
[1760355831996,3.2078,4083.1,4082.5,2.67171799]
[1760355832198,3.2078,4083.1,4083.0,2.4088]
[1760355832705,3.64824,4083.1,4083.0,2.6688]
[1760355833093,3.65115578,4083.1,4083.0,2.6688]
[1760355833700,3.21071578,4083.1,4083.0,2.6688]
[1760355837109,3.65115578,4083.1,4083.0,2.6688]
[1760355837711,3.65115578,4083.1,4083.0,1.90580711]
[1760355837910,3.65115578,4083.1,4082.5,0.66621799]
[1760355837911,0.44049,4082.6,4082.5,2.41171799]
[1760355838107,0.44049,4082.6,4082.5,2.67171799]
[1760355839214,3.21071578,4083.1,4083.0,0.6633]
[1760355839515,3.21071578,4083.1,4083.0,2.6688]
[1760355840004,3.65115578,4083.1,4083.0,2.6688]
[1760355841407,3.21071578,4083.1,4083.0,0.26]
[1760355841606,3.65115578,4083.1,4083.0,0.26]
[1760355841916,0.44049,4082.6,4082.5,0.66621799]
[1760355842109,0.44049,4082.6,4082.5,0.92621799]
[1760355842306,3.65115578,4083.1,4083.0,0.6633]
[1760355842506,0.44049,4082.6,4082.5,0.00291799]
[1760355842806,0.44049,4082.6,4081.0,0.6633]
[1760355842807,0.4406,4081.6,4081.5,2.4088]
[1760355843007,0.4406,4081.6,4081.5,2.6688]
[1760355843607,0.4406,4081.6,4081.5,2.67109069]
[1760355843814,0.47399556,4081.6,4081.5,2.67109069]
[1760355844215,0.44066,4081.1,4081.0,2.4088]
[1760355844717,0.47405556,4081.1,4081.0,2.6688]
[1760355844907,0.03339556,4081.1,4081.0,2.6688]
[1760355845218,0.03339556,4081.1,4081.0,2.41136347]
[1760355845407,0.03339556,4081.1,4081.0,2.67136347]
[1760355845603,0.03339556,4081.1,4081.0,2.41136347]
[1760355845907,0.03339556,4081.1,4081.0,2.67136347]
[1760355847610,0.03339556,4081.1,4081.0,2.41136347]
[1760355847809,3.2078,4081.2,4081.1,0.44066]
[1760355848009,3.2078,4081.9,4081.6,1.7455]
[1760355848207,3.2078,4081.9,4081.7,2.0055]
[1760355848208,0.44058,4081.8,4081.7,2.0055]
[1760355849712,0.44057,4082.0,4081.7,2.0055]
[1760355849911,0.44054,4082.2,4082.1,1.7455]
[1760355850317,0.44054,4082.2,4082.1,2.0055]
[1760355850822,1.10138,4082.1,4081.5,2.4088]
[1760355851117,0.44059,4081.7,4081.6,0.26]
[1760355851314,3.2078,4081.9,4081.6,0.26]
[1760355851518,0.44057,4081.9,4081.7,1.7455]
[1760355851814,3.2078,4082.4,4081.8,2.0055]
[1760355852012,3.2078,4082.4,4082.1,1.7455]
[1760355852013,0.44054,4082.2,4082.1,1.7455]
[1760355852213,0.44054,4082.2,4082.1,2.0055]
[1760355853118,0.44054,4082.2,4082.1,0.26]
[1760355853918,0.44054,4082.2,4082.1,2.0055]
[1760355854319,0.44054,4082.2,4082.1,0.26]
[1760355854621,3.2078,4082.4,4081.6,1.7455]
[1760355854622,0.44059,4081.7,4081.6,1.7455]
[1760355854820,0.44059,4081.7,4081.6,2.0055]
[1760355855117,4.30924,4081.9,4081.1,1.7455]
[1760355855316,0.44066,4081.1,4081.0,3.87366347]
[1760355855620,3.56724731,4081.1,4081.0,0.00256347]
[1760355855914,4.18857514,4081.1,4081.0,0.00256347]
[1760355856519,0.62132783,4081.1,4081.0,2.35146347]
[1760355856818,0.62132783,4081.1,4081.0,0.26256347]
[1760355857416,0.62132783,4081.1,4081.0,1.95886347]
[1760355857921,3.64845,4081.2,4081.1,1.6963]
[1760355858323,3.2078,4081.2,4081.1,1.6963]
[1760355858623,0.44065,4081.2,4081.1,1.6963]
[1760355859623,0.44065,4081.2,4081.1,1.9563]
[1760355859818,3.64845,4081.2,4081.1,1.9563]
[1760355861826,3.64845,4081.2,4081.0,0.65516347]
[1760355862129,3.64845,4081.2,4081.1,0.26]
[1760355862425,3.64845,4081.2,4081.1,1.9563]
[1760355863925,3.64845,4081.2,4080.0,0.6633]
[1760355863926,0.44084,4079.4,4079.3,1.6963]
[1760355864227,0.44087,4079.1,4079.0,5.5567]
[1760355864430,7.47358319,4079.4,4078.6,1.6963]
[1760355864621,7.47358319,4079.4,4078.5,3.8604]
[1760355864622,3.2078,4079.9,4079.0,0.6526]
[1760355864825,0.44085,4079.3,4079.1,3.4678]
[1760355865020,0.44085,4079.3,4079.2,1.6963]
[1760355865220,3.16896287,4079.8,4079.2,1.6963]
[1760355865420,4.31244236,4079.9,4079.1,3.4678]
[1760355865421,3.21045236,4079.9,4079.5,0.6526]
[1760355865623,0.00265236,4079.9,4079.7,1.6963]
[1760355865927,0.4408,4079.8,4079.7,1.6963]
[1760355866326,0.4408,4079.8,4079.7,1.9563]
[1760355866724,0.44344236,4079.9,4079.8,1.6963]
[1760355867324,0.44082,4079.6,4079.5,2.3489]
[1760355867523,0.44082,4079.6,4079.5,2.6089]
[1760355869824,0.44081,4079.7,4079.6,1.6963]
[1760355872927,0.44081,4079.7,4079.6,1.9563]
[1760355873129,0.00265236,4079.9,4079.6,1.9563]
[1760355873326,0.4408,4079.8,4079.6,1.9563]
[1760355873632,0.00265236,4079.9,4079.8,2.1371]
[1760355873836,0.00265236,4079.9,4079.8,2.3961]
[1760355875429,0.44344236,4079.9,4079.8,1.6963]
[1760355875624,0.44344236,4079.9,4079.8,1.9553]
[1760355877821,0.44344236,4079.9,4079.8,2.3961]
[1760355878721,0.44344236,4079.9,4079.8,1.6963]
[1760355878925,0.44344236,4079.9,4079.8,1.9553]
[1760355879630,0.44344236,4079.9,4079.8,1.6963]
[1760355879823,0.44344236,4079.9,4079.8,1.9553]
[1760355880826,0.44344236,4079.9,4079.8,1.6963]
[1760355881026,0.44344236,4079.9,4079.8,1.9553]
[1760355881226,0.44344236,4079.9,4079.8,2.3961]
[1760355882426,0.00265236,4079.9,4079.8,2.3961]
[1760355883426,3.2078,4080.9,4080.0,0.6526]
[1760355883628,0.44066,4081.1,4081.0,2.3489]
[1760355884028,0.44066,4081.1,4081.0,2.6079]
[1760355884534,0.44333068,4081.1,4081.0,2.6079]
[1760355884732,0.44333068,4081.1,4081.0,2.3489]
[1760355885035,0.44333068,4081.1,4081.0,2.6079]
[1760355885732,0.00267068,4081.1,4081.0,3.04857]
[1760355886234,0.44333068,4081.1,4081.0,2.6079]
[1760355888933,0.44333068,4081.1,4081.0,2.3489]
[1760355889134,0.44333068,4081.1,4081.0,2.6079]
[1760355893436,0.44333068,4081.1,4081.0,3.6994]
[1760355893937,0.00267068,4081.1,4081.0,8.50347]
[1760355894137,0.00267068,4081.1,4081.0,8.0628]
[1760355894338,0.00267068,4081.1,4081.0,7.8038]
[1760355894541,0.00267068,4081.1,4081.0,8.0628]
[1760355895242,0.44333068,4081.1,4081.0,7.8038]
[1760355895440,0.44333068,4081.1,4081.0,8.0628]
[1760355898044,0.44333068,4081.1,4081.0,8.50347]
[1760355899850,0.44333068,4081.1,4081.0,8.0628]
[1760355902851,0.44333068,4081.1,4081.0,8.50347]
[1760355903649,0.44333068,4081.1,4081.0,8.0628]
[1760355904051,0.44333068,4081.1,4081.0,8.50347]
[1760355904449,0.00267068,4081.1,4081.0,8.50347]
[1760355905056,3.64837,4081.9,4081.8,3.8026]
[1760355905354,3.64837,4081.9,4081.8,4.0606]
[1760355906049,3.65151754,4081.9,4081.8,4.0606]
[1760355906749,0.00314754,4081.9,4081.8,4.50118]
[1760355906944,0.00314754,4081.9,4081.8,4.24318]
[1760355907256,0.00314754,4081.9,4081.8,4.50118]
[1760355907654,0.44371754,4081.9,4081.8,4.50118]
[1760355908153,0.00314754,4081.9,4081.8,4.24318]
[1760355908354,3.2078,4082.9,4082.8,2.7218]
[1760355908652,3.2078,4082.9,4082.8,4.0606]
[1760355908653,3.64826,4082.9,4082.8,4.0606]
[1760355909355,0.00313838,4082.9,4082.8,4.06284055]
[1760355910153,0.00313838,4082.9,4082.8,4.50331055]
[1760355910551,0.00313838,4082.9,4082.8,4.24531055]
[1760355910752,0.00313838,4082.9,4082.8,4.50331055]
[1760355912357,0.00313838,4082.9,4082.8,7.71111055]
[1760355912658,0.00313838,4082.9,4082.8,7.45311055]
[1760355912858,0.00313838,4082.9,4082.8,7.71111055]
[1760355913452,0.44035,4083.9,4083.8,2.647]
[1760355913653,0.44035,4083.9,4083.8,4.0606]
[1760355914256,3.2078,4084.4,4083.8,4.0606]
[1760355914558,0.00235631,4084.4,4084.3,7.0104]
[1760355914859,0.00235631,4084.4,4084.3,7.2684]
[1760355916355,1.10311631,4084.4,4084.0,0.665]
[1760355916549,0.44037,4083.7,4083.6,1.642]
[1760355916748,0.44037,4083.7,4083.6,1.9]
[1760355918057,0.44037,4083.7,4083.6,4.0972]
[1760355919260,3.2078,4084.1,4084.0,1.7672]
[1760355919457,3.64813,4084.1,4084.0,3.6672]
[1760355920053,3.64813,4084.1,4084.0,4.7306]
[1760355920251,3.64813,4084.1,4084.0,2.5334]
[1760355920454,3.64813,4084.1,4084.0,0.6334]
[1760355920758,3.2078,4084.1,4084.0,0.258]
[1760355920961,0.44036,4083.8,4083.7,1.642]
[1760355921261,3.2078,4084.1,4084.0,3.4092]
[1760355921460,3.2078,4084.1,4084.0,4.7306]
[1760355921657,3.64813,4084.1,4084.0,4.7306]
[1760355921863,3.2078,4084.1,4084.0,4.7306]
[1760355922255,3.64813,4084.1,4084.0,4.7306]
[1760355922458,3.2078,4084.1,4084.0,4.7306]
[1760355922860,3.2078,4084.1,4084.0,5.17094]
[1760355923058,0.00235631,4084.4,4084.3,3.8392]
[1760355923260,0.00235631,4084.4,4084.3,2.34031]
[1760355925965,0.00235631,4084.4,4084.3,4.53751]
[1760355928457,3.64803,4085.1,4084.3,4.53751]
[1760355928458,3.64803,4085.1,4085.0,4.4726]
[1760355928657,3.64802,4085.1,4085.0,4.7306]
[1760355928860,3.64797,4085.6,4085.5,1.7672]
[1760355929062,3.64797,4085.6,4085.5,4.7306]
[1760355929264,3.64792,4086.1,4086.0,3.4092]
[1760355929463,3.65080731,4086.1,4086.0,3.66936569]
[1760355930169,3.65080731,4086.1,4086.0,4.73276569]
[1760355932963,3.87260731,4086.1,4085.5,0.6334]
[1760355933167,0.44028,4084.6,4084.5,0.6334]
[1760355933659,0.44028,4084.6,4084.0,0.6316]
[1760355933660,0.44033,4084.1,4084.0,0.6316]
[1760355933863,0.44033,4084.1,4084.0,0.8886]
[1760355934062,3.82548566,4084.1,4084.0,0.00263952]
[1760355934368,3.82548566,4084.1,4084.0,0.25963952]
[1760355934667,0.44033,4084.1,4084.0,0.89123952]
[1760355934864,0.44033,4084.2,4084.0,0.89123952]
[1760355935062,0.44033,4084.2,4084.1,1.6424]
[1760355935361,3.39209583,4084.1,4084.0,0.00263952]
[1760355935560,6.90152583,4084.2,4084.0,0.00263952]
[1760355935561,6.90152583,4084.2,4084.0,0.89123952]
[1760355935761,3.2078,4084.7,4084.1,1.6424]
[1760355935954,3.64812,4084.2,4084.1,1.6424]
[1760355936161,3.64812,4084.2,4084.1,0.257]
[1760355936360,3.78682,4084.2,4084.1,0.257]
[1760355937867,3.64812,4084.2,4084.1,1.8994]
[1760355938370,0.1387,4084.9,4084.6,1.6424]
[1760355938371,0.44025,4084.9,4084.6,1.6424]
[1760355938670,0.44025,4084.9,4084.8,1.6424]
[1760355939571,3.2078,4085.2,4084.8,1.6424]
[1760355939572,3.2078,4085.7,4085.1,1.6424]
[1760355939766,0.44018,4085.5,4085.3,1.6424]
[1760355939973,0.4402,4085.3,4085.2,1.8994]
[1760355940865,3.2078,4085.7,4085.5,0.44017]
[1760355941068,3.2078,4086.0,4085.7,1.6424]
[1760355941266,0.44014,4085.9,4085.7,1.6424]
[1760355941470,0.44014,4085.9,4085.8,0.257]
[1760355941667,0.44014,4085.9,4085.8,1.6424]
[1760355941869,0.44014,4085.9,4085.8,1.8994]
[1760355943276,3.79477479,4085.9,4085.8,0.257]
[1760355943474,4.41050743,4085.9,4085.8,0.257]
[1760355943676,3.2078,4086.0,4085.8,1.8994]
[1760355943873,3.64793,4086.0,4085.8,1.8994]